Cogmind - Beta 13 *** ADVENTURER MODE // 2024.04.04 @ 12:32:39 Player: Codechine Result: Self-destructed Performance ------------- Evolutions (1) 500 Regions Visited (2) 400 Robots Destroyed (24) 120 Value Destroyed (685) 685 Prototype IDs (0) 0 Alien Tech Used (0) 0 Bonus (8) 8 TOTAL SCORE: 1713 Bonus ------- High Alert Combat Kills 8 Cogmind --------- Core Integrity 80/400 Matter 0/300 Energy 93/100 System Corruption 0% Temperature Cool (0) Movement Rolling (95) Ox1 Location -9/Materials Parts ------- > --- POWER (2) -------- (None) > --- PROPULSION (2) --- Wheel > --- UTILITY (3) ------ Medium Storage Unit > --- WEAPON (2) ------- Autogun > --- INVENTORY (10) --- Grenade Launcher Peak State ------------ > --- POWER ------------ (None) > --- PROPULSION ------- Wheel Wheel > --- UTILITY ---------- Medium Storage Unit Targeting Computer > --- WEAPON ----------- Grenade Launcher Rocket Launcher > --- INVENTORY -------- Wheel Small Laser Assault Rifle Assault Rifle Grenade Launcher [Rating: 7] Favorites ----------- Power Ion Engine Engine Ion Engine Propulsion Wheel Wheel Wheel Utility Targeting Computer Storage Medium Storage Unit Processor Targeting Computer Weapon Assault Rifle Energy Gun Small Laser Ballistic Gun Assault Rifle Ballistic Cannon Light Cannon Launcher Rocket Launcher Build | -11 -10 -9 ------- Run | Yrd Mat Mat Slots Evolved 2 | . . 2 Power 1 | . . 1 Propulsion . | . . . Utility 1 | . . 1 Weapon . | . . . Parts Attached 24 | 5 8 11 Power 1 | 1 . . Engine 1 | 1 . . Core . | . . . Reactor . | . . . Propulsion 5 | 2 2 1 Treads . | . . . Leg . | . . . Wheel 5 | 2 2 1 Hover . | . . . Flight . | . . . Utility 2 | . 2 . Device . | . . . Storage 1 | . 1 . Processor 1 | . 1 . Hackware . | . . . Protection . | . . . Artifact . | . . . Weapon 16 | 2 4 10 Energy Gun 2 | . 1 1 Energy Cannon . | . . . Ballistic Gun 7 | 2 2 3 Ballistic Cannon 1 | . 1 . Launcher 6 | . . 6 Special Weapon . | . . . Impact Weapon . | . . . Slashing Weapon . | . . . Piercing Weapon . | . . . Special Melee Weapon . | . . . Unidentified Prototypes . | . . . Parts Lost 13 | . 5 8 Power 1 | . 1 . Propulsion 4 | . 2 2 Utility 1 | . . 1 Weapon 7 | . 2 5 Highest Loss Streak 5 | . 3 5 To Critical Strikes . | . . . Average Slot Usage (%) 65 | . 73 53 Engine 4 | . 7 . Wheel 14 | . 15 13 Storage 9 | . 9 11 Processor 12 | . 13 9 Energy Gun 4 | . 1 7 Ballistic Gun 15 | . 22 3 Ballistic Cannon 1 | . 2 . Launcher 3 | . . 8 Naked Turns . | . . . Heaviest Build 19 | 9 19 17 Greatest Support 26 | 26 26 20 Greatest Overweight (x) 4 | . 4 3 Average Overweight (x) . | . . . Largest Inventory Capacity 10 | 5 10 10 Average Capacity 8 | 5 8 10 Most Carried 5 | 3 5 5 Average Carried 2 | 1 1 3 Final Capacity 10 | 5 10 10 Final Carried 4 | 1 4 1 Class Distribution -------------------- 100% | Mutant Dominant Class ---------------- Mutant | -10/Materials Mutant | -9/Materials Resources | -11 -10 -9 ----------- Run | Yrd Mat Mat Matter Collected 457 | 209 147 101 Remotely . | . . . Salvage Created 674 | . 418 256 Parts 44 | . 17 27 Haulers Intercepted . | . . . Recyclers Shooed 2 | . 1 1 Parts Field Recycled . | . . . Retrieved Matter . | . . . Parts Self-Destructed . | . . . Prevented . | . . . Kills | -11 -10 -9 ------- Run | Yrd Mat Mat Combat Hostiles Destroyed 15 | . 7 8 Guns 5 | . 5 . Cannons 2 | . 2 . AOE 8 | . . 8 Classes Destroyed 6 | . 3 3 Worker 2 | . 2 . Builder 4 | . . 4 Recycler 1 | . 1 . Watcher 2 | . . 2 Grunt 14 | . 7 7 Duelist 1 | . . 1 Best Kill Streak 7 | . 5 7 Combat Bots Only 5 | . 4 5 Max Kills in Single Turn 4 | . 2 4 Gunslinging . | . . . Exploded 1 | . . 1 Melee . | . . . Uniques/NPCs Destroyed . | . . . Combat | -11 -10 -9 -------- Run | Yrd Mat Mat Hostile Shots Fired 155 | . 61 94 Missed 47 | . 19 28 Damage Taken 1223 | . 437 786 Core 393 | . 73 320 Absorbed by Shields . | . . . Ignored by Resistances 357 | . 130 227 Core Remaining (%) 85 | 100 70 . Volleys Fired 60 | . 37 23 Largest 2 | . 2 2 Hottest 75 | . 75 73 Shots Fired 103 | . 67 36 Gun 76 | . 56 20 Cannon 11 | . 11 . Launcher 16 | . . 16 Special . | . . . Kinetic 66 | . 63 3 Thermal 17 | . . 17 Explosive 16 | . . 16 Electromagnetic 4 | . 4 . Robot Hit Streak 10 | . 10 9 Robot Miss Streak 2 | . 2 1 Penetration Max . | . . . Secondary Targets 1 | . 1 . Max Gunslinging Chain 1 | . 1 . Shots Hit Robots 59 | . 38 21 Core Hits 45 | . 19 26 Critical Kills . | . . . Critical Parts Destroyed . | . . . Critical Strikes . | . . . Melee Attacks . | . . . Impact . | . . . Slashing . | . . . Piercing . | . . . Sneak Attacks . | . . . Combat Hostiles . | . . . Follow-up Attacks . | . . . Damage Inflicted 1773 | . 541 1232 Guns 564 | . 384 180 Cannons 157 | . 157 . Explosions 1052 | . . 1052 Melee . | . . . Ramming . | . . . Kinetic 530 | . 501 29 Thermal 151 | . . 151 Explosive 1052 | . . 1052 Electromagnetic 40 | . 40 . Impact . | . . . Slashing . | . . . Piercing . | . . . Highest Corruption . | . . . Average Corruption . | . . . Corruption Purged . | . . . Corruption Blocked . | . . . Overload Shots . | . . . Overflow Damage 26 | . . 26 Projectiles . | . . . Explosions 26 | . . 26 Melee . | . . . Knockbacks 5 | . 5 . Impact . | . . . Kinetic 5 | . 5 . Secondary . | . . . Self-Inflicted Damage 29 | . . 29 Shots 1 | . . 1 Rammed . | . . . Targets Rammed . | . . . Kicked . | . . . Crushed . | . . . Highest Temperature 82 | . 82 16 Average Temperature 22 | . 24 4 Received Heat Transfer 699 | . 339 360 Siege Activations . | . . . Robots Corrupted . | . . . Combat Hostiles . | . . . Parts Fried . | . . . Impact Corruptions . | . . . Robots Melted . | . . . Combat Hostiles . | . . . Parts Melted . | . . . Heat Transferred 350 | . . 350 Parts Sabotaged . | . . . Parts Stolen . | . . . Parts Stripped . | . . . Power Chain Reactions . | . . . Alert | -11 -10 -9 ------- Run | Yrd Mat Mat Peak Influence 463 | . 131 463 Initial 7 | . . 7 Average 121 | . 57 234 Maximum Alert Level 2 | . . 2 Low Security (%) 78 | 100 100 43 Level 1 14 | . . 39 Level 2 6 | . . 17 Level 3 . | . . . Level 4 . | . . . Level 5 . | . . . High Security . | . . . Max Security . | . . . Squads Dispatched 3 | . 1 2 Investigation 2 | . 1 1 Extermination . | . . . Reinforcement 1 | . . 1 Assault . | . . . Garrison . | . . . Intercept . | . . . Searches Triggered . | . . . Construction Impeded . | . . . Haulers Reinforced . | . . . Active Scanning Responses . | . . . Cargo Convoy Interrupts . | . . . Stealth | -11 -10 -9 --------- Run | Yrd Mat Mat Distress Signals 3 | . . 3 Communications Jammed . | . . . Distress Signals . | . . . Times Spotted 32 | . 11 21 Peak Tracking Total 12 | . 5 12 Tactical Retreats 2 | . 1 1 Traps | -11 -10 -9 ------- Run | Yrd Mat Mat Traps Triggered 1 | . 1 . Indirectly . | . . . Trap Hack Attempts . | . . . Triggered . | . . . Disarmed 6 | . . 6 Reprogrammed . | . . . Reused . | . . . Traps Extracted . | . . . Installed . | . . . Triggered . | . . . Machines | -11 -10 -9 ---------- Run | Yrd Mat Mat Machines Disabled 6 | . 1 5 Max in Single Turn 1 | . 1 1 Machines Repaired . | . . . Machines Dismantled . | . . . Machines Sabotaged . | . . . Overloaded Fab Kills . | . . . Hacking | -11 -10 -9 --------- Run | Yrd Mat Mat Machines Accessed 4 | . 2 2 Terminals 3 | . 1 2 Fabricators . | . . . Repair Stations . | . . . Recycling Units 1 | . 1 . Scanalyzers . | . . . Garrison Access . | . . . Total Hacks 14 | . 8 6 Successful 12 | . 7 5 Failed 2 | . 1 1 Catastrophic 1 | . . 1 Database Lockouts . | . . . Manual . | . . . Terminals 12 | . 6 6 Fabricators . | . . . Repair Stations . | . . . Recycling Units 2 | . 2 . Scanalyzers . | . . . Garrison Access . | . . . Terminal Hacks 10 | . 5 5 Record 3 | . 3 . Emergency Access Points 1 | . 1 . Alert Level 1 | . . 1 Unreport Threat 1 | . 1 . Disarm Traps 1 | . . 1 Surveillance Status 1 | . . 1 Hauler Manifests 1 | . . 1 Registered Components 1 | . . 1 Fabricator Hacks . | . . . Repair Station Hacks . | . . . Recycling Unit Hacks 2 | . 2 . Report Inventory 1 | . 1 . Retrieve Components 1 | . 1 . Scanalyzer . | . . . Garrison Access Hacks . | . . . Unauthorized Hacks . | . . . Terminals . | . . . Fabricators . | . . . Repair Stations . | . . . Recycling Units . | . . . Scanalyzers . | . . . Garrison Access . | . . . Data Cores Recovered . | . . . Used . | . . . Hacking Detections 2 | . . 2 Full Trace Events 1 | . . 1 Feedback Events . | . . . Feedback Blocked . | . . . Robot Schematics Acquired . | . . . Robots Built . | . . . Authchips . | . . . Time . | . . . Total Robot Build Rating . | . . . Part Schematics Acquired . | . . . Parts Built . | . . . Authchips . | . . . Time . | . . . Total Part Build Rating . | . . . Parts Repaired . | . . . Time . | . . . Parts Recycled . | . . . Recycled Matter . | . . . Retrieved Matter . | . . . Retrieved Components 2 | . 2 . Parts Scanalyzed . | . . . Part Schematics Acquired . | . . . Parts Damaged . | . . . Bothacking | -11 -10 -9 ------------ Run | Yrd Mat Mat Used RIF Installer . | . . . Robots Hacked . | . . . Non-combat . | . . . Combat . | . . . Robot Hacks Applied . | . . . Relay Couplers Released . | . . . Fabnet Peak Effective % . | . . . Robots Rewired . | . . . Allies Hacked . | . . . Hacks Repelled . | . . . Allies | -11 -10 -9 -------- Run | Yrd Mat Mat Total Allies . | . . . Largest Group . | . . . Highest-Rated Group . | . . . Highest-Rated Ally . | . . . Total Orders . | . . . Ally Attacks . | . . . Total Damage . | . . . Kills . | . . . Allies Corrupted . | . . . Allies Melted . | . . . Intel | -11 -10 -9 ------- Run | Yrd Mat Mat Robot Analysis Total . | . . . Derelict Logs Recovered . | . . . Drone Launches . | . . . Drone Recoveries . | . . . Exploration | -11 -10 -9 ------------- Run | Yrd Mat Mat Turns Passed 830 | 46 469 315 Spaces Moved 623 | 42 327 254 Core 38 | 7 28 3 Treads . | . . . Legs . | . . . Wheels 585 | 35 299 251 Hover . | . . . Flight . | . . . Fastest Speed 50 | 50 80 80 Average Speed 98 | 83 104 93 Slowest Speed 250 | 90 250 200 Overloaded Moves . | . . . Propulsion Burnouts . | . . . Robots Hopped . | . . . Cave-ins Triggered . | . . . Exploration Rate (%) 27 | 3 44 34 Regions Visited 2 Branch Regions . Pre-discovered Areas . | . . . Known Exits Taken . | . . . Unknown Exits Taken 2 | 1 1 . Scrap Searched . | . . . Spaces Dug 14 | . . 14 Terrain Destroyed 142 | . . 142 Melee . | . . . Projectile . | . . . AOE 142 | . . 142 Terrain Rammed . | . . . Walls Destroyed . | . . . Machines Disabled . | . . . Actions | -11 -10 -9 --------- Run | Yrd Mat Mat Total 730 | 52 384 294 Wait 7 | . 4 3 Move 621 | 41 326 254 Hop . | . . . Pick Up 17 | 6 9 2 Fast Attach . | . . . Attach 17 | 5 6 6 Detach 1 | . . 1 Swap 7 | . 2 5 Drop . | . . . Fire 60 | . 37 23 Melee . | . . . Ram . | . . . Kick . | . . . Crush . | . . . Escape Stasis . | . . . Rewire . | . . . Trap . | . . . Miscellaneous . | . . . Route ------- -11/Scrapyard -10/Materials -9/Materials (discovered 1 exit: [*Min]) History --------- Turn | Location | Event 16 | -11/Scrapyard | Discovered new exit (range 15) 47 | -11/Scrapyard | Entered Materials 203 | -10/Materials | Lost 3 parts (1n2w) 300 | -10/Materials | Build established: Mutant 366 | -10/Materials | Discovered new exit (range 15) 516 | -10/Materials | Entered another Materials area 516 | -9/Materials | Evolved 2 slots: Power x1, Utility x1 615 | -9/Materials | Lost 3 parts (1n2w) 645 | -9/Materials | Discovered new exit (range 12) 796 | -9/Materials | Core integrity fell below 50% 831 | -9/Materials | Self-destructed Last Messages --------------- M-13 Machinist repairs G-34 Mercenary. U-05 Engineer lays Concrete. R-06 Scavenger collects Terrain Scan Processor. U-05 Engineer lays Concrete. U-05 Engineer builds a Wall. U-05 Engineer lays Concrete. Acquired 7 matter. U-05 Engineer lays Concrete. G-34 Mercenary destroyed. Terminal disabled. U-05 Engineer lays Concrete. Grenade Launcher destroyed. U-05 Engineer builds a Wall. U-05 Engineer lays Concrete. U-05 Engineer destroyed. Acquired 13 matter. U-05 Engineer lays Concrete. U-05 Engineer builds a Wall. U-05 Engineer lays Concrete. Acquired Autogun. Map ----- +----------------------------------------------------+ | ?????????????????????????????????????????????????? | | ?????????????????????????????????????????????????? | | ?????????????????????????????????????????????????? | | ??????????########???????????????????????????????? | | ??????????? ??????????????????????????????? | | ??????????? ???????????????????????????????? | | ??????????? ! ??????????????????????????????? | | ??????????? ""??????????????????????????????? | | ???????????# ""??????????????????????????????? | | ???????????# ""??????????????????????????????? | | ???????????# "????????????????" ????????????? | | ???????????# ????????????????? #???????????? | | ???????????# ?????????????????? #???????????? | | ?########### #??????###+##?????? #???????????? | | ?# # #???? #????##% ##??????????? | | ?# # #?? #???? #??????????# | | ?# """ """ # # #???? #??????????# | | ?# """ """ + + ]]! #???? ##?????????# | | ?# """ """ # # ]!/ #???? < #??????????# | | ?# """ """ # #??]!/ #????? #??????????# | | ?# """ """ # #???? #????? #??????????+ | | ?# # #?????? #####?????" #??????????# | | ?########### #???????########### #???????????# | | ??# # #???????# # #???????????# | | ??# T # #???????# gg m #???????????# | | ??# # #???????# @ Y# ########????# | | ??# + #???????# # # #????# | | ??# # #???????########### # #????# | | ??# """ !# ############# # ### !# " ###### | | ??# """ # # ## + ! + | | ??# """ # # """ / != # " ###### | | ??# = # # """ ## !=! # #????# | | ??########## # """ ##### # =%########+######??? | | ???????????# + #???# | ###??????# ??? | | ???????????# # #???# * ##??????### ?? | | ???######### ##########?## % #???????# # # | | #### #?# [ #????????# | | ?????####### ### ###???????# | | ???????????# # | | ???????????# # | | ???????????######## # | | ??????????????????## ##### ##### # | | ???????????????????# #???#######????? ####### | | ???????????????????# #????????????????? # # | | ???????????????????# #??????????????????+ ?# | | ???????????????????# #??????????????????# ??" ?# | | ???????????????????# #?????????????????????""??# | | ???????????????????# #?????????????????????????# | | ??????????????????? #?????????????????????????# | | ??????????????????? ?????????????????????????? | +----------------------------------------------------+ Best States ------------- Heat Dissipation 28 Energy Generation 10 Energy Capacity 250 Matter Stores 259 Matter Capacity 300 Sight Range 16 Terrain Scan Density 10 Resistance: KI 20 Resistance: TH 20 Resistance: EX 20 Resistance: EM 20 Resistance: I 20 Resistance: S 20 Resistance: P 20 Evasion (%) 44 Targeting Accuracy 5 Offensive Hacking 10 Item Schematics ----------------- None Robot Schematics ------------------ None Fabricated ------------ Nothing Alien Tech Used ----------------- None Achievements -------------- Everything Is Under Control Oops Challenges ------------ None Game ------ Seed FactorySignalTreads Manual? 0 Play Time 00:18:25 Cumulative 1.9 hours Start 2024.04.04 @ 12:16:48 End 2024.04.04 @ 12:32:39 Sessions 1 Manual Loads 0 Difficulty Adventurer Special Mode None Game No. 3 Rogue 0 Adventurer 3 Explorer 0 Win Type - Total 0 Types 0/0/0/0/0/0/0/0/0 Lore% 5 Gallery% 4 Achievement% 7 Wizard Run 0 Options --------- Layout 1 ASCII 0 Keyboard 0 Movement Mouse Keybinds 0 Fullscreen 1 Font 24/Smallcaps Map View 50x35 Zoom Use 0% Tactical HUD 0 Map Filters NONE Filters NONE Steam 1 RUN: a86f3b3b-3c9d-47b2-9dab-09f5a6f7d0b0